bitfinex-derivatives/quotes_BNBF0:USTF0_20250807
["timestamp","ask_amount","ask_price","bid_price","bid_amount"]
[1754583637496,0.783,774.66,774.26,0.86497481]
[1754583639302,0.783,774.66,774.25,0.86497481]
[1754583639697,0.783,774.66,774.08,1.144492]
[1754583639996,0.783,774.66,774.25,0.86816548]
[1754583640201,0.783,774.66,774.24,0.86816548]
[1754583641098,0.783,774.66,774.25,0.86816548]
[1754583641502,0.783,774.66,774.24,0.86816548]
[1754583641702,0.783,774.66,774.26,0.86816548]
[1754583642402,0.783,774.66,774.27,0.86816548]
[1754583642803,0.783,774.66,774.26,0.86816548]
[1754583643902,0.783,774.66,774.25,0.86816548]
[1754583646103,0.783,774.66,774.26,0.86816548]
[1754583647305,0.783,774.66,774.25,0.86816548]
[1754583648606,0.783,774.66,774.26,0.86816548]
[1754583649406,0.783,774.66,774.25,0.86816548]
[1754583650106,0.783,774.66,774.26,0.86816548]
[1754583650811,0.86113268,774.65,774.26,0.86816548]
[1754583651108,0.86113268,774.64,774.26,0.86816548]
[1754583651405,0.783,774.66,774.26,0.86816548]
[1754583651705,0.86113696,774.65,774.27,0.86816548]
[1754583651905,0.783,774.66,774.27,0.86816548]
[1754583652106,0.86112841,774.65,774.27,0.86816548]
[1754583652306,0.783,774.66,774.27,0.86816548]
[1754583652510,0.86112954,774.65,774.27,0.86816548]
[1754583652710,0.86112954,774.64,774.27,0.86816548]
[1754583653009,0.783,774.66,774.27,0.86816548]
[1754583653207,0.86112954,774.65,774.27,0.86816548]
[1754583653410,0.86112954,774.64,774.27,0.86816548]
[1754583653607,0.783,774.66,774.27,0.86816548]
[1754583653806,0.86113098,774.65,774.28,0.86816548]
[1754583654010,0.783,774.66,774.31,0.86816548]
[1754583654212,0.783,774.66,774.32,0.86816548]
[1754583655414,0.783,774.66,774.31,0.86816548]
[1754583655711,1.014,774.65,774.31,0.86816548]
[1754583656412,1.014,774.65,774.13,1.144492]
[1754583656413,1.014,774.65,774.3,0.86816548]
[1754583656813,1.014,774.65,774.31,0.86816548]
[1754583657513,1.014,774.65,774.3,0.86816548]
[1754583660115,1.014,774.65,774.41,0.86816548]
[1754583660414,1.014,774.65,774.4,0.86816548]
[1754583660628,1.014,774.65,774.43,0.86816548]
[1754583661519,1.014,774.65,774.39,0.86816548]
[1754583661723,1.014,774.65,774.37,0.86816548]
[1754583662420,1.014,774.65,774.36,0.86816548]
[1754583664323,1.014,774.65,774.35,0.86816548]
[1754583664936,1.014,774.65,774.36,0.86816548]
[1754583665229,1.014,774.65,774.35,0.86816548]
[1754583665724,1.014,774.65,774.34,0.86816548]
[1754583666030,1.014,774.65,774.37,0.86816548]
[1754583666326,1.014,774.65,774.36,0.86816548]
[1754583666528,1.014,774.65,774.37,0.86816548]
[1754583667225,1.014,774.65,774.36,0.86816548]
[1754583668225,1.014,774.65,774.35,0.86816548]
[1754583669229,1.014,774.65,774.36,0.86816548]
[1754583670227,1.014,774.65,774.35,0.86816548]
[1754583670527,1.014,774.65,774.39,0.86816548]
[1754583671329,1.014,774.65,774.0,0.22466615]
[1754583671330,1.014,774.65,774.38,0.86816548]
[1754583673128,1.014,774.65,774.35,0.86816548]
[1754583674535,1.014,774.65,774.35,0.86544808]
[1754583676131,1.014,774.65,774.34,0.86544808]
[1754583676335,1.014,774.65,774.33,0.86544808]
[1754583680435,1.014,774.65,774.31,0.86544808]
[1754583681237,1.014,774.65,774.32,0.86544808]
[1754583681537,1.014,774.65,774.31,0.86544808]
[1754583681840,1.014,774.65,774.32,0.86544808]
[1754583682540,1.014,774.65,774.31,0.86544808]
[1754583682735,1.014,774.65,774.23,0.86544808]
[1754583683141,1.014,774.65,774.22,0.86544808]
[1754583683436,1.014,774.65,774.23,0.86544808]
[1754583683636,1.014,774.65,774.19,0.86544808]
[1754583683837,1.014,774.65,774.21,0.86544808]
[1754583684440,0.829,774.64,774.22,0.86544808]
[1754583685244,0.829,774.64,774.2,0.86544808]
[1754583686944,0.829,774.64,774.16,0.86544808]
[1754583689548,0.829,774.64,774.17,0.86544808]
[1754583689942,0.829,774.64,774.16,0.86544808]
[1754583691146,0.829,774.64,774.15,0.86544808]
[1754583691744,0.829,774.64,774.13,0.86544808]
[1754583692243,0.829,774.64,774.12,0.86544808]
[1754583693243,0.992,774.63,774.12,0.86544808]
[1754583694244,0.992,774.63,774.11,0.86544808]
[1754583696349,0.992,774.63,774.12,0.86544808]
[1754583699755,0.992,774.63,774.13,0.86544808]
[1754583700858,0.992,774.63,774.14,0.86544808]
[1754583701954,0.992,774.63,774.13,0.86544808]
[1754583702253,0.992,774.63,774.15,0.86544808]
[1754583704055,0.992,774.63,774.09,0.86544808]
[1754583704654,0.992,774.63,774.04,0.86544808]
[1754583704859,0.992,774.63,774.07,0.86544808]
[1754583705060,0.992,774.63,774.01,0.86544808]
[1754583705561,0.992,774.63,774.01,0.86602183]
[1754583706458,0.992,774.63,774.0,1.09068798]
[1754583707162,0.992,774.63,774.0,0.22466615]
[1754583708260,0.992,774.63,773.99,0.86602183]
[1754583708463,0.992,774.63,773.98,0.86602183]
[1754583708860,1.28383451,774.62,773.98,0.86602183]
[1754583709060,0.85671743,774.61,773.98,0.86602183]
[1754583709359,0.85671743,774.6,773.97,0.86602183]
[1754583709563,0.85671743,774.59,773.97,0.86602183]
[1754583709763,0.85671743,774.58,773.95,0.22470241]
[1754583709965,0.992,774.63,773.95,0.22470241]
[1754583710262,0.85653878,774.62,773.95,0.22470241]
[1754583710564,0.85653878,774.61,773.95,0.22470241]
[1754583710762,0.85653878,774.6,773.95,0.22470241]
[1754583710960,0.85653878,774.59,773.95,0.22470241]
[1754583711161,0.8563721,774.58,773.95,0.22470241]
[1754583711464,0.8563721,774.57,773.95,0.22470241]
[1754583711761,0.8563721,774.56,773.95,0.22470241]
[1754583711964,0.992,774.63,773.95,0.22470241]
[1754583712260,1.28306692,774.62,773.95,0.22470241]
[1754583712459,0.85620502,774.61,773.95,0.22470241]
[1754583712661,0.85620502,774.6,773.95,0.22470241]
[1754583712861,0.85620502,774.59,773.95,0.22470241]
[1754583713064,0.85620502,774.58,773.95,0.22470241]
[1754583713364,0.85620502,774.57,773.95,0.22470241]
[1754583713664,0.992,774.63,773.95,0.22470241]
[1754583713862,0.85589105,774.62,773.95,0.22470241]
[1754583714061,0.85589105,774.61,773.95,0.22470241]
[1754583714261,0.85589105,774.6,773.95,0.22470241]
[1754583714465,0.992,774.63,773.95,0.22470241]
[1754583714662,0.85574625,774.62,773.95,0.22470241]
[1754583714865,0.85574625,774.61,773.95,0.22470241]
[1754583715066,0.992,774.63,773.95,0.22470241]
[1754583715363,0.85574625,774.62,773.95,0.22470241]
[1754583715663,0.85574625,774.61,773.95,0.22470241]
[1754583715862,0.85574625,774.6,773.95,0.22470241]
[1754583716062,0.85574625,774.59,773.95,0.22470241]
[1754583716264,0.85574625,774.58,773.95,0.22470241]
[1754583716465,0.85574625,774.57,773.95,0.22470241]
[1754583716663,0.992,774.63,773.95,0.22470241]
[1754583716863,0.85549008,774.62,773.95,0.22470241]
[1754583717065,0.85549008,774.61,773.95,0.22470241]
[1754583717265,0.85549008,774.6,773.95,0.22470241]
[1754583717463,0.85549008,774.59,773.95,0.22470241]
[1754583717764,0.85549008,774.58,773.95,0.22470241]
[1754583717963,0.85549008,774.57,773.95,0.22470241]
[1754583718165,0.992,774.63,773.95,0.22470241]
[1754583718466,0.85533723,774.62,773.95,0.22470241]
[1754583718668,0.85533723,774.61,773.95,0.22470241]
[1754583718968,0.85533723,774.6,773.95,0.22470241]
[1754583719163,0.85533723,774.59,773.95,0.22470241]
[1754583719365,0.85533723,774.58,773.95,0.22470241]
[1754583719561,0.85533723,774.57,773.95,0.22470241]
[1754583719766,0.85533723,774.56,773.95,0.22470241]
[1754583719968,0.992,774.63,773.95,0.22470241]
[1754583720164,0.85517577,774.62,773.95,0.22470241]
[1754583720464,0.85517577,774.61,773.95,0.22470241]
[1754583720667,0.85517577,774.6,773.95,0.22470241]
[1754583720867,0.85517577,774.59,773.95,0.22470241]
[1754583721064,0.85517577,774.58,773.95,0.22470241]
[1754583721363,0.85517577,774.57,773.95,0.22470241]
[1754583721565,0.85517577,774.56,773.95,0.22470241]
[1754583721765,0.992,774.63,773.95,0.22470241]
[1754583722165,0.85512812,774.62,773.95,0.22470241]
[1754583722367,0.85512812,774.61,773.95,0.22470241]
[1754583722566,0.85511922,774.6,773.95,0.22470241]
[1754583722768,0.85511922,774.59,773.95,0.22470241]
[1754583722968,0.992,774.63,773.95,0.22470241]
[1754583722969,0.85511922,774.58,773.95,0.22470241]
[1754583723168,0.85511922,774.57,773.95,0.22470241]
[1754583723367,0.85511922,774.56,773.95,0.22470241]
[1754583723667,0.85511922,774.55,773.95,0.22470241]
[1754583723869,0.992,774.63,773.95,0.22470241]
[1754583724172,0.85512204,774.62,773.95,0.22470241]
[1754583724368,0.85512204,774.61,773.95,0.22470241]
[1754583724566,0.85512204,774.6,773.95,0.22470241]
[1754583724768,0.85512204,774.59,773.95,0.22470241]
[1754583724967,0.85512204,774.58,773.95,0.22470241]
[1754583725270,0.85512204,774.57,773.95,0.22470241]
[1754583725468,1.75112204,774.56,773.95,0.22470241]
[1754583725671,0.85512204,774.55,773.95,0.22470241]
[1754583727573,0.896,774.56,773.95,0.22470241]
[1754583729382,0.85538685,774.55,773.95,0.22470241]
[1754583729579,0.896,774.56,773.95,0.22470241]
[1754583735986,0.791,774.55,773.95,0.22470241]
[1754583747391,0.791,774.55,773.99,0.86602183]
[1754583748394,0.791,774.55,774.0,0.86602183]
[1754583748694,0.791,774.55,773.97,0.86602183]
[1754583748893,0.791,774.55,773.95,0.22470241]
[1754583749189,0.791,774.55,773.96,0.86602183]
[1754583750896,0.791,774.55,773.98,0.86602183]
[1754583751192,0.895,774.54,773.98,0.86602183]
[1754583751394,0.895,774.54,773.95,0.22470241]
[1754583751697,0.85961366,774.53,773.95,0.22470241]
[1754583751897,0.85961366,774.52,773.95,0.22470241]
[1754583752097,0.895,774.54,773.95,0.22470241]
[1754583752397,0.85962083,774.53,773.95,0.22470241]
[1754583752599,0.85962083,774.52,773.95,0.22470241]
[1754583752892,0.85962083,774.51,773.95,0.22470241]
[1754583753094,0.895,774.54,773.95,0.22470241]
[1754583753292,0.85967413,774.53,773.95,0.22470241]
[1754583753493,0.85967413,774.52,773.95,0.22470241]
[1754583753799,0.85967413,774.51,773.95,0.22470241]
[1754583753998,0.895,774.54,773.95,0.22470241]
[1754583754194,0.85973344,774.53,773.95,0.22470241]
[1754583754398,0.85973344,774.52,773.95,0.22470241]
[1754583754598,0.85973344,774.51,773.95,0.22470241]
[1754583754799,0.895,774.54,773.95,0.22470241]
[1754583754997,0.85979954,774.53,773.95,0.22470241]
[1754583755195,0.85979954,774.52,773.95,0.22470241]
[1754583755395,0.85979954,774.51,773.95,0.22470241]
[1754583755598,0.85979954,774.5,773.95,0.22470241]
[1754583755798,0.85979954,774.49,773.95,1.09150368]
[1754583756094,0.895,774.54,773.95,1.09150368]
[1754583756298,1.287878,774.53,773.95,1.09150368]
[1754583756499,1.28791876,774.52,773.96,0.86680127]
[1754583756701,0.85987256,774.51,773.96,0.86680127]
[1754583756900,0.85987256,774.5,773.96,0.86680127]
[1754583757096,0.85987256,774.49,773.96,0.86680127]
[1754583757297,0.85987256,774.48,773.96,0.86680127]
[1754583757602,0.895,774.54,773.96,0.86680127]
[1754583757802,1.28814341,774.53,773.95,1.09150368]
[1754583758003,0.8600498,774.52,773.95,1.09150368]
[1754583758297,0.8600498,774.51,773.96,0.86680127]
[1754583758497,0.8600498,774.5,773.96,0.86680127]
[1754583758697,0.8600498,774.49,773.96,0.86680127]
[1754583758897,0.8600498,774.48,773.96,0.86680127]
[1754583759097,0.895,774.54,773.96,0.86680127]
[1754583759301,1.28829733,774.53,773.96,0.86680127]
[1754583759499,1.28829733,774.52,773.96,0.86680127]
[1754583759701,1.28835773,774.51,773.96,0.86680127]
[1754583759900,0.86015261,774.5,773.96,0.86680127]
[1754583760201,0.86015261,774.49,773.95,1.09150368]
[1754583760402,0.86015261,774.48,773.96,0.86680127]
[1754583760701,0.86062898,774.47,773.96,0.86680127]
[1754583760902,0.895,774.54,773.96,0.86680127]
[1754583761101,1.2889016,774.53,773.96,0.86680127]
[1754583761297,1.2889016,774.52,773.96,0.86680127]
[1754583761500,1.2889016,774.51,773.96,0.86680127]
[1754583761696,1.2889016,774.5,773.97,0.86680127]
[1754583761897,0.86062907,774.49,773.97,0.86680127]
[1754583762101,0.86062907,774.48,773.97,0.86680127]
[1754583762298,0.86062907,774.47,773.98,0.86680127]
[1754583762498,0.86062907,774.46,773.98,0.86680127]
[1754583762696,0.86062907,774.45,773.92,0.86680127]
[1754583762899,1.28908756,774.44,773.92,0.86680127]
[1754583763100,0.86062907,774.43,773.92,0.86680127]
[1754583763303,0.86062907,774.42,773.93,0.86680127]
[1754583763503,0.86062907,774.41,773.93,0.86680127]
[1754583763698,0.86062907,774.4,773.93,0.86680127]
[1754583763899,0.86062907,774.39,773.91,0.86680127]
[1754583764103,0.86062907,774.38,773.91,0.86680127]
[1754583764399,0.86062907,774.37,773.91,0.86680127]
[1754583764598,0.86062907,774.36,773.91,0.86680127]
[1754583764798,0.998,774.51,773.91,0.86680127]
[1754583764998,1.28909054,774.5,773.91,0.86680127]
[1754583765303,1.28909054,774.49,773.91,0.86680127]
[1754583765501,1.28909054,774.48,773.91,0.86680127]
[1754583765703,1.28909054,774.47,773.91,0.86680127]
[1754583765901,1.28909054,774.46,773.91,0.86680127]
[1754583766104,1.28909054,774.45,773.91,0.86680127]
[1754583766301,1.28909054,774.44,773.9,0.86680127]
[1754583766501,1.28912666,774.43,773.9,0.86680127]
[1754583766707,1.28912666,774.43,773.84,0.22473071]
[1754583766708,1.28912666,774.42,773.91,0.86680127]
[1754583766908,1.2890909,774.41,773.91,0.86680127]
[1754583767105,1.2890909,774.4,773.91,0.86680127]
[1754583767304,1.2890909,774.39,773.91,0.86680127]
[1754583767509,0.8613688,774.38,773.91,0.86680127]
[1754583767808,0.8613688,774.37,773.91,0.86680127]
[1754583768005,0.8613688,774.36,773.91,0.86680127]
[1754583768209,0.8613688,774.35,773.91,0.86680127]
[1754583768409,0.8613688,774.34,773.91,0.86680127]
[1754583768611,0.998,774.51,773.91,0.86680127]
[1754583768906,1.28893693,774.5,773.91,0.86680127]
[1754583769206,1.28893693,774.49,773.91,0.86680127]
[1754583769506,1.28893693,774.48,773.91,0.86680127]
[1754583769709,1.28893693,774.47,773.91,0.86680127]
[1754583770009,1.28893693,774.46,773.91,0.86680127]
[1754583770209,1.28893693,774.45,773.91,0.86680127]
[1754583770408,1.28893693,774.44,773.91,0.86680127]
[1754583770607,1.28893693,774.43,773.91,0.86680127]
[1754583770806,1.28893693,774.42,773.91,0.86680127]
[1754583771005,1.28893693,774.41,773.91,0.86680127]
[1754583771206,1.28893693,774.4,773.91,0.86680127]
[1754583771409,1.28885103,774.39,773.91,0.86680127]
[1754583771606,0.86124202,774.38,773.91,0.86680127]
[1754583771807,0.86124202,774.37,773.91,0.86680127]
[1754583772006,0.86124202,774.36,773.91,0.86680127]
[1754583772206,0.86124202,774.35,773.9,0.86680127]
[1754583772513,0.86100313,774.34,773.9,0.86680127]
[1754583772707,0.86100313,774.33,773.9,0.86680127]
[1754583772907,0.86100313,774.32,773.9,0.86680127]
[1754583773113,0.998,774.51,773.9,0.86680127]
[1754583773312,0.998,774.51,773.84,0.22473071]
[1754583773313,1.28858025,774.5,773.89,0.86680127]
[1754583773513,1.28858025,774.49,773.83,0.86680127]
[1754583773711,1.28858025,774.48,773.83,0.86680127]
[1754583774014,1.28858025,774.47,773.83,0.86680127]
[1754583774210,1.28858025,774.46,773.83,0.86680127]
[1754583774411,1.28858025,774.45,773.8,0.86680127]
[1754583774615,1.28858025,774.44,773.79,0.86680127]
[1754583774816,1.28858025,774.43,773.78,0.86680127]
[1754583775018,1.28858025,774.42,773.78,0.86680127]
[1754583775216,1.28858025,774.41,773.77,0.86680127]
[1754583775413,1.28816206,774.4,773.77,0.86680127]
[1754583775717,1.28816206,774.39,773.77,0.86680127]
[1754583775917,1.28816206,774.38,773.77,0.86680127]
[1754583776118,1.28816206,774.37,773.77,0.86680127]
[1754583776420,1.28816206,774.36,773.76,0.86680127]
[1754583776718,1.28816206,774.35,773.76,0.86680127]
[1754583776916,1.28816206,774.34,773.76,0.86680127]
[1754583777120,0.998,774.51,773.74,0.22474958]
[1754583777121,1.28816206,774.33,773.75,0.86680127]
[1754583777321,1.28816206,774.32,773.75,0.86680127]
[1754583777520,1.28816206,774.31,773.75,0.86680127]
[1754583777720,0.86072299,774.3,773.75,0.86680127]
[1754583778018,0.86072299,774.29,773.74,0.22474958]
[1754583778215,0.86072299,774.28,773.74,0.22474958]
[1754583778420,0.86072299,774.27,773.74,0.22474958]
[1754583778719,0.86923737,774.46,773.74,0.22474958]
[1754583778917,1.28725244,774.45,773.74,0.22474958]
[1754583779220,1.28725244,774.44,773.74,0.22474958]
[1754583779420,1.28725244,774.43,773.74,0.22474958]
[1754583779619,1.28725244,774.42,773.74,0.22474958]
[1754583779819,1.28725244,774.41,773.74,0.22474958]
[1754583780020,1.28725244,774.4,773.74,0.22474958]
[1754583780317,1.28725244,774.39,773.74,0.22474958]
[1754583780620,1.28725244,774.38,773.74,0.22474958]
[1754583780823,1.28725244,774.37,773.74,0.22474958]
[1754583781020,1.28725244,774.36,773.74,0.22474958]
[1754583781315,0.86923737,774.47,773.74,0.22474958]
[1754583781316,1.28725244,774.35,773.74,0.22474958]
[1754583781521,0.86011464,774.34,773.74,0.22474958]
[1754583781820,0.86011464,774.33,773.74,0.22474958]
[1754583782116,0.86011464,774.32,773.74,0.22474958]
[1754583782316,0.86011464,774.31,773.74,0.22474958]
[1754583782521,0.86923737,774.47,773.74,0.22474958]
[1754583782720,1.28669755,774.46,773.74,0.22474958]
[1754583783020,1.28669755,774.45,773.74,0.22474958]
[1754583783222,0.85974423,774.45,773.74,0.22474958]
[1754583783420,1.28667597,774.44,773.74,0.22474958]
[1754583783619,1.28667597,774.43,773.74,0.22474958]
[1754583783820,0.85972973,774.42,773.74,0.22474958]
[1754583784021,1.28667597,774.41,773.74,0.22474958]
[1754583784218,1.28667597,774.4,773.74,0.22474958]
[1754583784418,1.28667597,774.39,773.74,0.22474958]
[1754583784617,1.28667597,774.38,773.75,0.86680127]
[1754583784917,1.28667597,774.37,773.75,0.86680127]
[1754583785121,0.85972973,774.36,773.75,0.86680127]
[1754583785321,0.85972973,774.35,773.74,0.22474958]
[1754583785516,0.85972973,774.34,773.74,0.22474958]
[1754583785716,0.998,774.51,773.74,0.22474958]
[1754583785919,1.28631897,774.5,773.74,0.22474958]
[1754583786118,1.28631897,774.49,773.74,0.22474958]
[1754583786417,1.28631897,774.48,773.74,0.22474958]
[1754583786619,1.28631897,774.47,773.74,0.22474958]
[1754583786819,1.28631897,774.46,773.74,0.22474958]
[1754583787019,1.28631897,774.45,773.74,0.22474958]
[1754583787220,1.28631897,774.44,773.74,0.22474958]
[1754583787418,1.28631897,774.43,773.74,0.22474958]
[1754583787621,1.28631897,774.42,773.74,0.22474958]
[1754583787820,1.28631897,774.41,773.74,0.22474958]
[1754583788021,1.28631897,774.4,773.74,0.22474958]
[1754583788220,1.28631897,774.39,773.74,0.22474958]
[1754583788523,0.85949123,774.38,773.74,0.22474958]
[1754583788720,0.85949123,774.37,773.74,0.22474958]
[1754583788920,0.85949123,774.36,773.74,0.22474958]
[1754583789125,0.85949123,774.35,773.74,0.22474958]
[1754583789321,0.85949123,774.34,773.74,0.22474958]
[1754583789623,0.998,774.51,773.74,0.22474958]
[1754583789821,1.28593199,774.5,773.74,0.22474958]
[1754583790021,1.28593199,774.49,773.74,0.22474958]
[1754583790226,1.28593199,774.48,773.74,0.22474958]
[1754583790424,1.28593199,774.47,773.74,0.22474958]
[1754583790624,1.28593199,774.46,773.74,0.22474958]
[1754583790823,1.28593199,774.45,773.74,0.22474958]
[1754583791021,1.28593199,774.44,773.74,0.22474958]
[1754583791225,1.28593199,774.43,773.74,0.22474958]
[1754583791429,1.28593199,774.42,773.74,0.22474958]
[1754583791625,1.28593199,774.41,773.74,0.22474958]
[1754583791824,1.28593199,774.4,773.74,0.22474958]
[1754583792030,0.85923266,774.39,773.74,0.22474958]
[1754583792430,0.8587871,774.38,773.74,0.22474958]
[1754583792629,0.8587871,774.37,773.74,0.22474958]
[1754583792924,0.8587871,774.36,773.74,0.22474958]
[1754583793123,0.788,774.36,773.74,0.22474958]
[1754583795026,0.85869589,774.35,773.74,0.22474958]
[1754583795326,0.85869589,774.34,773.74,0.22474958]
[1754583795529,0.788,774.36,773.74,0.22474958]
[1754583795827,0.85866838,774.35,773.74,0.22474958]
[1754583796028,0.85866838,774.34,773.74,0.22474958]
[1754583796230,0.85866838,774.33,773.74,0.22474958]
[1754583796427,0.788,774.36,773.74,0.22474958]
[1754583796631,0.85864703,774.35,773.74,0.22474958]
[1754583796828,0.85864703,774.34,773.74,0.22474958]
[1754583797027,0.85864703,774.33,773.74,0.22474958]
[1754583797232,0.788,774.36,773.74,0.22474958]
[1754583797430,0.85862801,774.35,773.74,0.22474958]
[1754583797630,0.85862801,774.34,773.74,0.22474958]
[1754583797829,0.85862801,774.33,773.74,0.22474958]
[1754583798131,0.85862801,774.32,773.74,0.22474958]
[1754583798330,0.788,774.36,773.74,0.22474958]
[1754583798533,0.85861963,774.35,773.74,0.22474958]
[1754583798733,0.85861963,774.34,773.74,0.22474958]
[1754583799030,0.85861963,774.33,773.74,0.22474958]
[1754583799233,0.85861963,774.32,773.74,0.22474958]
[1754583799431,0.788,774.36,773.74,0.22474958]
[1754583799630,1.28540347,774.35,773.74,0.22474958]
[1754583799833,0.85859319,774.34,773.74,0.22474958]
[1754583800031,0.85859319,774.33,773.74,0.22474958]
[1754583800233,0.788,774.36,773.74,0.22474958]
[1754583800234,0.85859319,774.32,773.74,0.22474958]
[1754583800534,0.85859319,774.31,773.74,0.22474958]
[1754583800739,0.788,774.36,773.74,0.22474958]
[1754583800940,1.28538005,774.35,773.74,0.22474958]
[1754583801140,0.85857755,774.34,773.74,0.22474958]
[1754583801340,0.8586348,774.33,773.74,0.22474958]
[1754583801637,0.8586348,774.32,773.68,0.86680127]
[1754583801840,0.788,774.36,773.68,0.86680127]
[1754583801841,0.8586348,774.31,773.68,0.86680127]
[1754583802040,0.8586348,774.3,773.67,0.86680127]
[1754583802237,0.8586348,774.29,773.68,0.86680127]
[1754583802441,0.788,774.36,773.68,0.86680127]
[1754583802442,0.8586348,774.28,773.68,0.86680127]
[1754583802640,0.86923737,774.35,773.61,0.22479386]
[1754583802843,1.28569802,774.34,773.61,0.22479386]
[1754583803039,1.28569802,774.33,773.61,0.22479386]
[1754583803342,1.28569802,774.32,773.61,0.22479386]
[1754583803539,1.28569802,774.31,773.61,0.22479386]
[1754583803743,1.28569802,774.3,773.61,0.22479386]
[1754583803939,1.28569802,774.29,773.61,0.22479386]
[1754583804137,1.28569802,774.28,773.61,0.22479386]
[1754583804339,1.28564767,774.27,773.61,0.22479386]
[1754583804545,1.28564767,774.26,773.61,0.22479386]
[1754583804845,1.28564767,774.25,773.64,0.86680127]
[1754583805145,1.28564767,774.24,773.64,0.86680127]
[1754583805446,1.28564767,774.23,773.64,0.86680127]
[1754583805745,0.85878797,774.22,773.64,0.86680127]
[1754583805946,0.85878797,774.21,773.61,1.09159513]
[1754583806142,0.85878797,774.2,773.61,0.22479386]
[1754583806341,0.85878797,774.19,773.61,0.22479386]
[1754583806542,0.86923737,774.42,773.61,0.22479386]
[1754583806843,1.28526672,774.41,773.61,0.22479386]
[1754583807042,1.28526672,774.4,773.61,0.22479386]
[1754583807242,1.28526672,774.39,773.61,0.22479386]
[1754583807443,1.28526672,774.38,773.61,0.22479386]
[1754583807642,1.28526672,774.37,773.61,0.22479386]
[1754583807845,1.28526672,774.36,773.61,0.22479386]
[1754583808046,1.28526672,774.35,773.61,0.22479386]
[1754583808342,0.998,774.51,773.61,0.22479386]
[1754583808343,1.28526672,774.34,773.61,0.22479386]
[1754583808542,1.28526672,774.33,773.61,0.22479386]
[1754583808843,1.28526672,774.32,773.61,0.22479386]
[1754583809143,1.28526672,774.31,773.61,0.22479386]
[1754583809347,1.28526672,774.3,773.61,0.22479386]
[1754583809543,1.28526672,774.29,773.61,0.22479386]
[1754583809743,1.28526672,774.28,773.61,0.22479386]
[1754583809949,1.28526672,774.27,773.61,0.22479386]
[1754583810150,1.28526672,774.26,773.61,0.22479386]
[1754583810449,1.28533849,774.25,773.61,0.22479386]
[1754583810646,0.85854802,774.24,773.61,0.22479386]
[1754583810849,0.85836592,774.23,773.61,0.22479386]
[1754583811051,0.85836592,774.22,773.61,0.22479386]
[1754583811250,0.85836592,774.21,773.61,0.22479386]
[1754583811447,0.86923737,774.46,773.61,0.22479386]
[1754583811647,1.28511243,774.45,773.61,0.22479386]
[1754583811851,1.28511243,774.44,773.61,0.22479386]
[1754583812048,1.28511243,774.43,773.61,0.22479386]
[1754583812352,1.28511243,774.42,773.61,1.09159513]
[1754583812551,1.165,774.44,773.61,1.09159513]
[1754583812552,1.28511243,774.41,773.61,1.09159513]
[1754583812753,1.28511243,774.4,773.61,0.22479386]
[1754583813052,0.85839706,774.39,773.61,0.22479386]
[1754583813353,0.85839706,774.38,773.61,0.22479386]
[1754583813553,0.85839706,774.37,773.61,0.22479386]
[1754583813753,0.85839706,774.36,773.61,0.22479386]
[1754583813952,1.165,774.44,773.61,0.22479386]
[1754583814253,1.28520034,774.43,773.61,0.22479386]
[1754583814453,1.28520034,774.42,773.61,0.22479386]
[1754583814650,1.28520034,774.41,773.61,0.22479386]
[1754583814849,1.28520034,774.4,773.61,0.22479386]
[1754583815154,0.85845718,774.39,773.61,0.22479386]
[1754583815349,0.85845718,774.38,773.61,0.22479386]
[1754583815650,0.85845718,774.37,773.61,0.22479386]
[1754583815849,0.85845718,774.36,773.61,0.22479386]
[1754583816048,0.85845718,774.35,773.61,0.22479386]
[1754583816253,0.85861221,774.34,773.61,0.22479386]
[1754583816450,1.165,774.44,773.61,0.22479386]
[1754583816655,1.28556496,774.43,773.61,0.22479386]
[1754583816864,1.28556496,774.42,773.61,0.22479386]
[1754583817051,1.28556496,774.41,773.61,1.09159513]
[1754583817254,1.28556496,774.4,773.62,0.86680127]
[1754583817451,1.28556496,774.39,773.62,0.86680127]
[1754583817653,1.28556496,774.38,773.62,0.86680127]
[1754583817852,1.28556496,774.37,773.62,0.86680127]
[1754583818152,0.85870073,774.36,773.62,0.86680127]
[1754583818356,0.85870073,774.35,773.62,0.86680127]
[1754583818656,0.85870073,774.34,773.63,0.86680127]
[1754583818951,0.85870073,774.33,773.63,0.86680127]
[1754583819252,1.084,774.38,773.63,0.86680127]
[1754583819453,1.2858776,774.37,773.68,0.86680127]
[1754583819652,1.28599738,774.36,773.68,0.86680127]
[1754583819857,1.28599738,774.35,773.68,0.86680127]
[1754583820054,1.28599738,774.34,773.63,0.86680127]
[1754583820254,1.28599738,774.33,773.67,0.86680127]
[1754583820456,1.28599738,774.32,773.67,0.86680127]
[1754583820655,1.28599738,774.31,773.67,0.86680127]
[1754583820854,1.28599738,774.3,773.67,0.86680127]